[Event "Titled Tuesday Blitz July 26 Early 2022"]
[White "Kravtsiv, Martyn"]
[Black "Zierk, Steven"]
[WhiteFideId "14113147"]
[BlackFideId "2034255"]
[WhiteElo "2694"]
[BlackElo "2494"]
[Result "1-0"]
[Round "04"]
[TimeControl "180+1"]
[Date "2022.07.26"]
[WhiteClock "0:00:15"]
[BlackClock "0:00:06"]

1. e4 {[%clk 0:03:00]}  c6 {[%clk 0:02:56]} 2. Nf3 {[%clk 0:03:00]}  d5 {[%clk 0:02:56]} 3. d3 {[%clk 0:03:01]}  dxe4 {[%clk 0:02:56]} 4. dxe4 {[%clk 0:03:01]}  Qxd1+ {[%clk 0:02:56]} 5. Kxd1 {[%clk 0:03:01]}  Nf6 {[%clk 0:02:57]} 6. Nbd2 {[%clk 0:03:00]}  h5 {[%clk 0:02:49]} 7. a4 {[%clk 0:02:57]}  a5 {[%clk 0:02:46]} 8. Ne1 {[%clk 0:02:53]}  e5 {[%clk 0:02:35]} 9. Nd3 {[%clk 0:02:52]}  Nbd7 {[%clk 0:02:34]} 10. f3 {[%clk 0:02:50]}  Bd6 {[%clk 0:02:29]} 11. Nc4 {[%clk 0:02:46]}  Bc7 {[%clk 0:02:29]} 12. Bd2 {[%clk 0:02:46]}  O-O {[%clk 0:02:18]} 13. Be2 {[%clk 0:02:43]}  b6 {[%clk 0:02:16]} 14. Bc3 {[%clk 0:02:39]}  Re8 {[%clk 0:02:15]} 15. Ke1 {[%clk 0:02:34]}  Ba6 {[%clk 0:02:14]} 16. Ne3 {[%clk 0:02:33]}  g6 {[%clk 0:02:09]} 17. Kf2 {[%clk 0:02:33]}  Nh7 {[%clk 0:01:59]} 18. Rhd1 {[%clk 0:02:29]}  Nhf8 {[%clk 0:01:56]} 19. Nc1 {[%clk 0:02:23]}  Bb7 {[%clk 0:01:47]} 20. Nc4 {[%clk 0:02:16]}  Re6 {[%clk 0:01:19]} 21. Nb3 {[%clk 0:02:12]}  f6 {[%clk 0:01:13]} 22. Rd2 {[%clk 0:02:07]}  Kg7 {[%clk 0:01:13]} 23. Rad1 {[%clk 0:02:07]}  Re7 {[%clk 0:01:12]} 24. Nd6 {[%clk 0:02:06]}  Ba6 {[%clk 0:01:11]} 25. Bxa6 {[%clk 0:02:02]}  Rxa6 {[%clk 0:01:12]} 26. Ne8+ {[%clk 0:01:58]}  Kf7 {[%clk 0:01:03]} 27. Nxc7 {[%clk 0:01:56]}  Ra7 {[%clk 0:01:04]} 28. Nd5 {[%clk 0:01:47]}  cxd5 {[%clk 0:01:05]} 29. Rxd5 {[%clk 0:01:43]}  Ne6 {[%clk 0:01:02]} 30. Rd6 {[%clk 0:01:38]}  Rc7 {[%clk 0:00:59]} 31. g3 {[%clk 0:01:30]}  Ke8 {[%clk 0:00:54]} 32. Ke3 {[%clk 0:01:23]}  Nd8 {[%clk 0:00:47]} 33. Nd2 {[%clk 0:01:13]}  Nb7 {[%clk 0:00:45]} 34. Rd5 {[%clk 0:01:13]}  Nbc5 {[%clk 0:00:40]} 35. Ra1 {[%clk 0:01:12]}  Rc6 {[%clk 0:00:31]} 36. Ra3 {[%clk 0:00:54]}  Nf8 {[%clk 0:00:26]} 37. Nc4 {[%clk 0:00:43]}  Nxe4 {[%clk 0:00:24]} 38. Nxa5 {[%clk 0:00:42]}  Nxc3 {[%clk 0:00:23]} 39. Rd8+ {[%clk 0:00:42]}  Kxd8 {[%clk 0:00:19]} 40. Nxc6+ {[%clk 0:00:43]}  Kd7 {[%clk 0:00:19]} 41. Nxe7 {[%clk 0:00:39]}  Nd1+ {[%clk 0:00:19]} 42. Ke2 {[%clk 0:00:36]}  Nxb2 {[%clk 0:00:19]} 43. Nd5 {[%clk 0:00:36]}  Kd6 {[%clk 0:00:19]} 44. Nxb6 {[%clk 0:00:36]}  Ne6 {[%clk 0:00:19]} 45. a5 {[%clk 0:00:35]}  Nd4+ {[%clk 0:00:19]} 46. Kf2 {[%clk 0:00:35]}  Nxc2 {[%clk 0:00:15]} 47. Rb3 {[%clk 0:00:34]}  Nd1+ {[%clk 0:00:15]} 48. Kg1 {[%clk 0:00:28]}  Nd4 {[%clk 0:00:13]} 49. a6 {[%clk 0:00:21]}  Nxb3 {[%clk 0:00:10]} 50. a7 {[%clk 0:00:21]}  Nd4 {[%clk 0:00:09]} 51. a8=Q {[%clk 0:00:21]}  Ne3 {[%clk 0:00:10]} 52. Qe4 {[%clk 0:00:19]}  Nef5 {[%clk 0:00:08]} 53. Nc4+ {[%clk 0:00:18]}  Kc5 {[%clk 0:00:07]} 54. Ne3 {[%clk 0:00:18]}  Ne7 {[%clk 0:00:07]} 55. Kg2 {[%clk 0:00:16]}  g5 {[%clk 0:00:07]} 56. h4 {[%clk 0:00:15]}  gxh4 {[%clk 0:00:06]} 57. Qxh4 {[%clk 0:00:15]} 1-0


[Site "https://www.chess.com"]

[Event "Titled Tuesday Blitz July 26 Early 2022"]
[White "Kupervaser, Erez"]
[Black "Hansen, Eric"]
[WhiteFideId "2814587"]
[BlackFideId "2606771"]
[WhiteElo "1832"]
[BlackElo "2568"]
[Result "0-1"]
[Round "04"]
[TimeControl "180+1"]
[Date "2022.07.26"]
[WhiteClock "0:00:02"]
[BlackClock "0:00:06"]

1. e4 {[%clk 0:03:00]}  c5 {[%clk 0:02:58]} 2. Nf3 {[%clk 0:02:55]}  e6 {[%clk 0:02:58]} 3. d4 {[%clk 0:02:54]}  cxd4 {[%clk 0:02:52]} 4. Nxd4 {[%clk 0:02:55]}  a6 {[%clk 0:02:52]} 5. Nc3 {[%clk 0:02:54]}  Qc7 {[%clk 0:02:51]} 6. g4 {[%clk 0:02:54]}  b5 {[%clk 0:02:49]} 7. h4 {[%clk 0:02:48]}  Bb7 {[%clk 0:02:50]} 8. Bg2 {[%clk 0:02:43]}  b4 {[%clk 0:02:32]} 9. Nce2 {[%clk 0:02:40]}  Nf6 {[%clk 0:02:31]} 10. Ng3 {[%clk 0:02:22]}  d5 {[%clk 0:02:21]} 11. Qe2 {[%clk 0:02:15]}  Bd6 {[%clk 0:02:17]} 12. g5 {[%clk 0:02:01]}  Nxe4 {[%clk 0:02:16]} 13. Nxe4 {[%clk 0:01:54]}  dxe4 {[%clk 0:02:17]} 14. Bxe4 {[%clk 0:01:55]}  O-O {[%clk 0:02:17]} 15. g6 {[%clk 0:01:29]}  Nd7 {[%clk 0:02:02]} 16. gxf7+ {[%clk 0:01:25]}  Rxf7 {[%clk 0:02:02]} 17. Nxe6 {[%clk 0:01:21]}  Qc8 {[%clk 0:02:02]} 18. Bg5 {[%clk 0:01:14]}  Ne5 {[%clk 0:02:01]} 19. Bxb7 {[%clk 0:01:08]}  Qxb7 {[%clk 0:01:51]} 20. O-O-O {[%clk 0:01:03]}  Qb6 {[%clk 0:00:48]} 21. f4 {[%clk 0:00:45]}  Ng6 {[%clk 0:00:48]} 22. Qe4 {[%clk 0:00:33]}  Re8 {[%clk 0:00:48]} 23. f5 {[%clk 0:00:30]}  Nf8 {[%clk 0:00:48]} 24. Be3 {[%clk 0:00:26]}  Qb8 {[%clk 0:00:46]} 25. Kb1 {[%clk 0:00:26]}  Be7 {[%clk 0:00:41]} 26. Bf4 {[%clk 0:00:23]}  Qc8 {[%clk 0:00:35]} 27. Rhg1 {[%clk 0:00:23]}  Bf6 {[%clk 0:00:35]} 28. Qxb4 {[%clk 0:00:20]}  Nxe6 {[%clk 0:00:32]} 29. fxe6 {[%clk 0:00:20]}  Rb7 {[%clk 0:00:33]} 30. Qa4 {[%clk 0:00:09]}  Rxb2+ {[%clk 0:00:31]} 31. Kc1 {[%clk 0:00:09]}  Rb5 {[%clk 0:00:28]} 32. Rd3 {[%clk 0:00:03]}  Rxe6 {[%clk 0:00:27]} 33. Rgd1 {[%clk 0:00:03]}  h5 {[%clk 0:00:19]} 34. Bg5 {[%clk 0:00:03]}  Reb6 {[%clk 0:00:08]} 35. Bxf6 {[%clk 0:00:01]}  Rb1+ {[%clk 0:00:08]} 36. Kd2 {[%clk 0:00:02]}  Rxd1+ {[%clk 0:00:07]} 37. Kxd1 {[%clk 0:00:03]}  Rxf6 {[%clk 0:00:08]} 38. Qe4 {[%clk 0:00:02]}  Qf8 {[%clk 0:00:06]} 0-1


[Site "https://www.chess.com"]

[Event "Titled Tuesday Blitz July 26 Early 2022"]
[White "Makarian, Rudik"]
[Black "Zeynalli, Rashad"]
[WhiteFideId "44105681"]
[BlackFideId "13403320"]
[WhiteElo "2403"]
[BlackElo "2125"]
[Result "1-0"]
[Round "04"]
[TimeControl "180+1"]
[Date "2022.07.27"]
[WhiteClock "0:00:11"]
[BlackClock "0:00:02"]

1. d3 {[%clk 0:03:00]}  d5 {[%clk 0:02:53]} 2. f4 {[%clk 0:03:01]}  Nf6 {[%clk 0:02:46]} 3. Nf3 {[%clk 0:03:01]}  e6 {[%clk 0:02:42]} 4. g3 {[%clk 0:03:00]}  Be7 {[%clk 0:02:41]} 5. Bg2 {[%clk 0:02:59]}  O-O {[%clk 0:02:41]} 6. O-O {[%clk 0:02:59]}  c5 {[%clk 0:02:41]} 7. e3 {[%clk 0:02:54]}  Nc6 {[%clk 0:02:40]} 8. b3 {[%clk 0:02:54]}  Nd7 {[%clk 0:02:33]} 9. Bb2 {[%clk 0:02:50]}  Bf6 {[%clk 0:02:31]} 10. Nc3 {[%clk 0:02:45]}  b5 {[%clk 0:02:21]} 11. e4 {[%clk 0:02:40]}  b4 {[%clk 0:02:15]} 12. Na4 {[%clk 0:02:38]}  Bxb2 {[%clk 0:02:12]} 13. Nxb2 {[%clk 0:02:39]}  Nb6 {[%clk 0:02:03]} 14. exd5 {[%clk 0:02:32]}  exd5 {[%clk 0:01:53]} 15. a3 {[%clk 0:02:16]}  Qf6 {[%clk 0:01:45]} 16. d4 {[%clk 0:02:15]}  bxa3 {[%clk 0:01:34]} 17. Rxa3 {[%clk 0:02:15]}  cxd4 {[%clk 0:01:34]} 18. Nd3 {[%clk 0:02:13]}  Bg4 {[%clk 0:01:32]} 19. Qa1 {[%clk 0:02:01]}  Bxf3 {[%clk 0:01:24]} 20. Bxf3 {[%clk 0:02:01]}  Rfe8 {[%clk 0:01:24]} 21. b4 {[%clk 0:01:54]}  Nc4 {[%clk 0:01:05]} 22. Ra6 {[%clk 0:01:51]}  Ne3 {[%clk 0:00:51]} 23. b5 {[%clk 0:01:48]}  Nxf1 {[%clk 0:00:42]} 24. Rxc6 {[%clk 0:01:47]}  Re6 {[%clk 0:00:41]} 25. Bxd5 {[%clk 0:01:12]}  Rxc6 {[%clk 0:00:27]} 26. Bxc6 {[%clk 0:01:12]}  Rd8 {[%clk 0:00:22]} 27. Qxf1 {[%clk 0:01:10]}  Qe7 {[%clk 0:00:22]} 28. Kg2 {[%clk 0:01:06]}  h5 {[%clk 0:00:17]} 29. Ne5 {[%clk 0:01:02]}  Qc5 {[%clk 0:00:15]} 30. Qc4 {[%clk 0:01:00]}  Qxc4 {[%clk 0:00:15]} 31. Nxc4 {[%clk 0:01:01]}  d3 {[%clk 0:00:16]} 32. cxd3 {[%clk 0:01:01]}  Rxd3 {[%clk 0:00:17]} 33. Ne5 {[%clk 0:00:59]}  Rd2+ {[%clk 0:00:16]} 34. Kg1 {[%clk 0:00:53]}  Kf8 {[%clk 0:00:15]} 35. Bf3 {[%clk 0:00:44]}  g6 {[%clk 0:00:14]} 36. Nc6 {[%clk 0:00:43]}  Ra2 {[%clk 0:00:13]} 37. Bd5 {[%clk 0:00:38]}  Ra1+ {[%clk 0:00:11]} 38. Kf2 {[%clk 0:00:38]}  Kg7 {[%clk 0:00:12]} 39. Ne5 {[%clk 0:00:35]}  Rb1 {[%clk 0:00:10]} 40. Bc6 {[%clk 0:00:31]}  Kf8 {[%clk 0:00:07]} 41. h4 {[%clk 0:00:27]}  Rb2+ {[%clk 0:00:07]} 42. Ke3 {[%clk 0:00:27]}  Rb3+ {[%clk 0:00:07]} 43. Nd3 {[%clk 0:00:27]}  Ke7 {[%clk 0:00:07]} 44. Kd4 {[%clk 0:00:28]}  Rb1 {[%clk 0:00:07]} 45. Ne5 {[%clk 0:00:25]}  Rd1+ {[%clk 0:00:06]} 46. Kc5 {[%clk 0:00:24]}  Rc1+ {[%clk 0:00:06]} 47. Kb4 {[%clk 0:00:23]}  Rb1+ {[%clk 0:00:05]} 48. Kc5 {[%clk 0:00:21]}  Rc1+ {[%clk 0:00:05]} 49. Kd4 {[%clk 0:00:19]}  Rd1+ {[%clk 0:00:05]} 50. Ke3 {[%clk 0:00:19]}  Re1+ {[%clk 0:00:05]} 51. Kf2 {[%clk 0:00:19]}  Rb1 {[%clk 0:00:05]} 52. Nd3 {[%clk 0:00:15]}  Rb3 {[%clk 0:00:04]} 53. Ke3 {[%clk 0:00:14]}  Kd6 {[%clk 0:00:03]} 54. Kd4 {[%clk 0:00:15]}  Rb1 {[%clk 0:00:03]} 55. Bd5 {[%clk 0:00:13]}  Rxb5 {[%clk 0:00:02]} 56. Bxf7 {[%clk 0:00:14]}  Rb1 {[%clk 0:00:01]} 57. Bxg6 {[%clk 0:00:12]}  a5 {[%clk 0:00:02]} 58. Bxh5 {[%clk 0:00:11]}  a4 {[%clk 0:00:01]} 59. Bf7 {[%clk 0:00:12]}  a3 {[%clk 0:00:02]} 60. Ne5 {[%clk 0:00:11]} 1-0


[Site "https://www.chess.com"]

[Event "Titled Tuesday Blitz July 26 Early 2022"]
[White "Makovec, Bruno"]
[Black "Korchmar, Vasiliy"]
[WhiteFideId "14536331"]
[BlackFideId "24131750"]
[WhiteElo "2316"]
[BlackElo "2370"]
[Result "1-0"]
[Round "04"]
[TimeControl "180+1"]
[Date "2022.07.27"]
[WhiteClock "0:00:18"]
[BlackClock "0:00:07"]

1. d4 {[%clk 0:03:00]}  d5 {[%clk 0:02:59]} 2. Nf3 {[%clk 0:03:00]}  Nf6 {[%clk 0:02:59]} 3. c4 {[%clk 0:03:00]}  c6 {[%clk 0:03:00]} 4. e3 {[%clk 0:03:00]}  e6 {[%clk 0:03:00]} 5. b3 {[%clk 0:03:00]}  Ne4 {[%clk 0:02:59]} 6. Bd3 {[%clk 0:02:50]}  Bb4+ {[%clk 0:02:57]} 7. Nbd2 {[%clk 0:02:46]}  Nd7 {[%clk 0:02:49]} 8. O-O {[%clk 0:02:42]}  f5 {[%clk 0:02:48]} 9. a3 {[%clk 0:02:39]}  Bd6 {[%clk 0:02:48]} 10. Bb2 {[%clk 0:02:37]}  Qf6 {[%clk 0:02:46]} 11. b4 {[%clk 0:02:18]}  O-O {[%clk 0:02:46]} 12. b5 {[%clk 0:02:07]}  g5 {[%clk 0:02:30]} 13. Rc1 {[%clk 0:01:59]}  g4 {[%clk 0:02:29]} 14. Ne1 {[%clk 0:01:59]}  Bxh2+ {[%clk 0:02:12]} 15. Kxh2 {[%clk 0:01:57]}  Qh4+ {[%clk 0:02:13]} 16. Kg1 {[%clk 0:01:57]}  Rf6 {[%clk 0:02:12]} 17. g3 {[%clk 0:01:29]}  Qh3 {[%clk 0:02:11]} 18. Ng2 {[%clk 0:01:28]}  Rh6 {[%clk 0:02:02]} 19. Nh4 {[%clk 0:01:28]}  Nf8 {[%clk 0:00:42]} 20. Re1 {[%clk 0:01:17]}  Nxg3 {[%clk 0:00:31]} 21. fxg3 {[%clk 0:01:16]}  Qxg3+ {[%clk 0:00:28]} 22. Ng2 {[%clk 0:01:17]}  Ng6 {[%clk 0:00:10]} 23. Nf1 {[%clk 0:01:13]}  Qh3 {[%clk 0:00:08]} 24. Rc2 {[%clk 0:00:45]}  g3 {[%clk 0:00:08]} 25. Nxg3 {[%clk 0:00:40]}  Qxg3 {[%clk 0:00:09]} 26. Rf2 {[%clk 0:00:29]}  Bd7 {[%clk 0:00:09]} 27. Qf3 {[%clk 0:00:25]}  Qh2+ {[%clk 0:00:09]} 28. Kf1 {[%clk 0:00:25]}  cxb5 {[%clk 0:00:07]} 29. cxb5 {[%clk 0:00:25]}  Rc8 {[%clk 0:00:06]} 30. Nf4 {[%clk 0:00:20]}  Qh1+ {[%clk 0:00:04]} 31. Ke2 {[%clk 0:00:20]}  Qxf3+ {[%clk 0:00:03]} 32. Rxf3 {[%clk 0:00:21]}  Rh2+ {[%clk 0:00:02]} 33. Rf2 {[%clk 0:00:21]}  Nxf4+ {[%clk 0:00:03]} 34. exf4 {[%clk 0:00:22]}  Rh3 {[%clk 0:00:03]} 35. Kd2 {[%clk 0:00:19]}  Kf7 {[%clk 0:00:03]} 36. Rfe2 {[%clk 0:00:19]}  Rg8 {[%clk 0:00:03]} 37. Re3 {[%clk 0:00:19]}  Rg2+ {[%clk 0:00:02]} 38. R1e2 {[%clk 0:00:19]}  Rxe2+ {[%clk 0:00:01]} 39. Rxe2 {[%clk 0:00:20]}  Rh4 {[%clk 0:00:01]} 40. Ke3 {[%clk 0:00:20]}  Rh3+ {[%clk 0:00:01]} 41. Kd2 {[%clk 0:00:20]}  Rh4 {[%clk 0:00:02]} 42. Rf2 {[%clk 0:00:21]}  h5 {[%clk 0:00:02]} 43. Bc1 {[%clk 0:00:21]}  Rh1 {[%clk 0:00:02]} 44. Rf1 {[%clk 0:00:20]}  Rh2+ {[%clk 0:00:02]} 45. Kc3 {[%clk 0:00:20]}  h4 {[%clk 0:00:03]} 46. Be3 {[%clk 0:00:20]}  Rh3 {[%clk 0:00:03]} 47. Kd2 {[%clk 0:00:19]}  Rh2+ {[%clk 0:00:03]} 48. Ke1 {[%clk 0:00:20]}  Ra2 {[%clk 0:00:03]} 49. Rh1 {[%clk 0:00:20]}  Rxa3 {[%clk 0:00:03]} 50. Ke2 {[%clk 0:00:19]}  Ra2+ {[%clk 0:00:03]} 51. Bd2 {[%clk 0:00:20]}  a6 {[%clk 0:00:03]} 52. bxa6 {[%clk 0:00:20]}  bxa6 {[%clk 0:00:04]} 53. Rxh4 {[%clk 0:00:20]}  Bb5 {[%clk 0:00:04]} 54. Bxb5 {[%clk 0:00:19]}  axb5 {[%clk 0:00:05]} 55. Rh7+ {[%clk 0:00:20]}  Kg6 {[%clk 0:00:05]} 56. Rb7 {[%clk 0:00:21]}  Rb2 {[%clk 0:00:05]} 57. Kd3 {[%clk 0:00:21]}  Kf6 {[%clk 0:00:05]} 58. Kc3 {[%clk 0:00:21]}  Rb1 {[%clk 0:00:05]} 59. Kc2 {[%clk 0:00:21]}  Rf1 {[%clk 0:00:05]} 60. Rxb5 {[%clk 0:00:21]}  Rf2 {[%clk 0:00:05]} 61. Rb6 {[%clk 0:00:21]}  Re2 {[%clk 0:00:05]} 62. Kd3 {[%clk 0:00:22]}  Rf2 {[%clk 0:00:05]} 63. Rb8 {[%clk 0:00:22]}  Rf3+ {[%clk 0:00:05]} 64. Be3 {[%clk 0:00:22]}  Rf1 {[%clk 0:00:06]} 65. Rf8+ {[%clk 0:00:22]}  Ke7 {[%clk 0:00:06]} 66. Rg8 {[%clk 0:00:22]}  Re1 {[%clk 0:00:07]} 67. Rg7+ {[%clk 0:00:21]}  Kd6 {[%clk 0:00:07]} 68. Bd2 {[%clk 0:00:22]}  Rf1 {[%clk 0:00:06]} 69. Bb4+ {[%clk 0:00:22]}  Kc6 {[%clk 0:00:06]} 70. Re7 {[%clk 0:00:22]}  Rf3+ {[%clk 0:00:06]} 71. Ke2 {[%clk 0:00:21]}  Rxf4 {[%clk 0:00:07]} 72. Rxe6+ {[%clk 0:00:21]}  Kb5 {[%clk 0:00:07]} 73. Bc5 {[%clk 0:00:21]}  Kc4 {[%clk 0:00:05]} 74. Ke3 {[%clk 0:00:20]}  Re4+ {[%clk 0:00:03]} 75. Rxe4 {[%clk 0:00:20]}  fxe4 {[%clk 0:00:04]} 76. Ba7 {[%clk 0:00:21]}  Kc3 {[%clk 0:00:04]} 77. Bb8 {[%clk 0:00:21]}  Kc4 {[%clk 0:00:05]} 78. Be5 {[%clk 0:00:21]}  Kc3 {[%clk 0:00:05]} 79. Bf6 {[%clk 0:00:21]}  Kc4 {[%clk 0:00:05]} 80. Kd2 {[%clk 0:00:21]}  Kb3 {[%clk 0:00:05]} 81. Be7 {[%clk 0:00:20]}  Kc4 {[%clk 0:00:05]} 82. Bc5 {[%clk 0:00:21]}  Kb3 {[%clk 0:00:06]} 83. Ke3 {[%clk 0:00:17]}  Kc4 {[%clk 0:00:07]} 84. Be7 {[%clk 0:00:17]}  Kc3 {[%clk 0:00:07]} 85. Bh4 {[%clk 0:00:18]}  Kc4 {[%clk 0:00:07]} 86. Bf2 {[%clk 0:00:18]}  Kc3 {[%clk 0:00:07]} 87. Kf4 {[%clk 0:00:18]} 1-0


[Site "https://www.chess.com"]

[Event "Titled Tuesday Blitz July 26 Early 2022"]
[White "Martinez Alcantara, Jose Eduardo"]
[Black "Maksimovic, Bojan"]
[WhiteFideId "3805662"]
[BlackFideId "14408120"]
[WhiteElo "2703"]
[BlackElo "2453"]
[Result "1/2-1/2"]
[Round "04"]
[TimeControl "180+1"]
[Date "2022.07.26"]
[WhiteClock "0:00:03"]
[BlackClock "0:00:03"]

1. e4 {[%clk 0:03:00]}  c5 {[%clk 0:02:53]} 2. Nf3 {[%clk 0:03:00]}  Nc6 {[%clk 0:02:53]} 3. c3 {[%clk 0:02:58]}  e5 {[%clk 0:02:49]} 4. Bc4 {[%clk 0:02:57]}  Nf6 {[%clk 0:02:46]} 5. d3 {[%clk 0:02:50]}  Be7 {[%clk 0:02:44]} 6. O-O {[%clk 0:02:50]}  O-O {[%clk 0:02:44]} 7. Re1 {[%clk 0:02:49]}  d6 {[%clk 0:02:43]} 8. Nbd2 {[%clk 0:02:49]}  a6 {[%clk 0:02:42]} 9. a4 {[%clk 0:02:48]}  h6 {[%clk 0:02:33]} 10. Nf1 {[%clk 0:02:45]}  Be6 {[%clk 0:02:29]} 11. Ne3 {[%clk 0:02:39]}  Na5 {[%clk 0:02:22]} 12. Bxe6 {[%clk 0:02:06]}  fxe6 {[%clk 0:02:22]} 13. Bd2 {[%clk 0:02:07]}  Nc6 {[%clk 0:02:18]} 14. Qb3 {[%clk 0:02:07]}  Qd7 {[%clk 0:02:09]} 15. Nc4 {[%clk 0:02:05]}  Bd8 {[%clk 0:02:10]} 16. Qa2 {[%clk 0:02:02]}  Kh7 {[%clk 0:02:06]} 17. b4 {[%clk 0:02:01]}  cxb4 {[%clk 0:02:04]} 18. cxb4 {[%clk 0:02:02]}  Bc7 {[%clk 0:01:44]} 19. Qb2 {[%clk 0:01:52]}  b5 {[%clk 0:01:35]} 20. axb5 {[%clk 0:01:52]}  axb5 {[%clk 0:01:36]} 21. Ne3 {[%clk 0:01:53]}  Rxa1 {[%clk 0:01:33]} 22. Rxa1 {[%clk 0:01:54]}  Nh5 {[%clk 0:01:33]} 23. Nc2 {[%clk 0:01:18]}  Bb6 {[%clk 0:01:11]} 24. Be3 {[%clk 0:01:14]}  Bxe3 {[%clk 0:01:07]} 25. fxe3 {[%clk 0:01:15]}  Ne7 {[%clk 0:01:08]} 26. Rf1 {[%clk 0:01:14]}  Ng6 {[%clk 0:01:08]} 27. Na1 {[%clk 0:01:08]}  Qe7 {[%clk 0:01:05]} 28. Nb3 {[%clk 0:01:05]}  Nh4 {[%clk 0:01:05]} 29. Nbd2 {[%clk 0:01:05]}  Nxf3+ {[%clk 0:01:01]} 30. Nxf3 {[%clk 0:01:06]}  Qa7 {[%clk 0:01:01]} 31. Qf2 {[%clk 0:00:56]}  Nf6 {[%clk 0:00:59]} 32. h3 {[%clk 0:00:54]}  Qa3 {[%clk 0:00:52]} 33. Qd2 {[%clk 0:00:54]}  Rc8 {[%clk 0:00:52]} 34. g4 {[%clk 0:00:37]}  Qc3 {[%clk 0:00:46]} 35. Qe2 {[%clk 0:00:29]}  Qc2 {[%clk 0:00:46]} 36. Qxc2 {[%clk 0:00:20]}  Rxc2 {[%clk 0:00:47]} 37. Ra1 {[%clk 0:00:18]}  Rc3 {[%clk 0:00:47]} 38. Ne1 {[%clk 0:00:17]}  d5 {[%clk 0:00:47]} 39. exd5 {[%clk 0:00:14]}  Nxd5 {[%clk 0:00:48]} 40. Kf2 {[%clk 0:00:14]}  Nxb4 {[%clk 0:00:48]} 41. Ke2 {[%clk 0:00:15]}  Nd5 {[%clk 0:00:25]} 42. Kd2 {[%clk 0:00:13]}  b4 {[%clk 0:00:22]} 43. Ra5 {[%clk 0:00:09]}  Rb3 {[%clk 0:00:19]} 44. Kc2 {[%clk 0:00:08]}  Rc3+ {[%clk 0:00:19]} 45. Kd2 {[%clk 0:00:08]}  Ra3 {[%clk 0:00:19]} 46. Rb5 {[%clk 0:00:05]}  Ra2+ {[%clk 0:00:20]} 47. Nc2 {[%clk 0:00:06]}  Nxe3 {[%clk 0:00:16]} 48. Kxe3 {[%clk 0:00:07]}  Rxc2 {[%clk 0:00:16]} 49. Rxe5 {[%clk 0:00:05]}  Rh2 {[%clk 0:00:10]} 50. Rxe6 {[%clk 0:00:02]}  Rxh3+ {[%clk 0:00:09]} 51. Ke4 {[%clk 0:00:03]}  Rg3 {[%clk 0:00:08]} 52. d4 {[%clk 0:00:03]}  Rxg4+ {[%clk 0:00:08]} 53. Ke5 {[%clk 0:00:02]}  Rg5+ {[%clk 0:00:06]} 54. Ke4 {[%clk 0:00:01]}  Rb5 {[%clk 0:00:06]} 55. Rc6 {[%clk 0:00:01]}  b3 {[%clk 0:00:06]} 56. Rc1 {[%clk 0:00:02]}  b2 {[%clk 0:00:07]} 57. Rb1 {[%clk 0:00:03]}  h5 {[%clk 0:00:07]} 58. d5 {[%clk 0:00:04]}  Kg8 {[%clk 0:00:06]} 59. Kd4 {[%clk 0:00:03]}  Rb8 {[%clk 0:00:06]} 60. Kc5 {[%clk 0:00:03]}  Kf8 {[%clk 0:00:03]} 61. Kd6 {[%clk 0:00:04]}  Ke8 {[%clk 0:00:04]} 62. Kc7 {[%clk 0:00:05]}  Rb3 {[%clk 0:00:04]} 63. Re1+ {[%clk 0:00:04]}  Kf7 {[%clk 0:00:04]} 64. Rf1+ {[%clk 0:00:03]}  Kg6 {[%clk 0:00:03]} 65. Rb1 {[%clk 0:00:03]}  Kf6 {[%clk 0:00:03]} 66. d6 {[%clk 0:00:04]}  Rc3+ {[%clk 0:00:02]} 67. Kd8 {[%clk 0:00:03]}  Rb3 {[%clk 0:00:02]} 68. Kc7 {[%clk 0:00:02]}  Rc3+ {[%clk 0:00:03]} 69. Kd8 {[%clk 0:00:02]}  Rb3 {[%clk 0:00:03]} 70. Kc7 {[%clk 0:00:03]} 1/2-1/2


[Site "https://www.chess.com"]

[Event "Titled Tuesday Blitz July 26 Early 2022"]
[White "Molina, Roberto Junio Brito"]
[Black "Hakobyan, Aram"]
[WhiteFideId "2109450"]
[BlackFideId "13306677"]
[WhiteElo "2432"]
[BlackElo "2557"]
[Result "0-1"]
[Round "04"]
[TimeControl "180+1"]
[Date "2022.07.26"]
[WhiteClock "0:01:04"]
[BlackClock "0:01:28"]

1. d4 {[%clk 0:03:00]}  d5 {[%clk 0:02:58]} 2. e3 {[%clk 0:03:01]}  Bf5 {[%clk 0:02:57]} 3. Nf3 {[%clk 0:03:02]}  e6 {[%clk 0:02:57]} 4. Bd3 {[%clk 0:03:02]}  Bd6 {[%clk 0:02:58]} 5. Bxf5 {[%clk 0:03:01]}  exf5 {[%clk 0:02:59]} 6. c4 {[%clk 0:03:01]}  dxc4 {[%clk 0:02:59]} 7. Qa4+ {[%clk 0:02:59]}  c6 {[%clk 0:02:59]} 8. Qxc4 {[%clk 0:02:59]}  Nf6 {[%clk 0:03:00]} 9. b3 {[%clk 0:02:58]}  O-O {[%clk 0:03:00]} 10. O-O {[%clk 0:02:58]}  Nbd7 {[%clk 0:03:01]} 11. Ba3 {[%clk 0:02:58]}  Bxa3 {[%clk 0:03:00]} 12. Nxa3 {[%clk 0:02:59]}  Qe7 {[%clk 0:02:58]} 13. Qc1 {[%clk 0:02:57]}  Nd5 {[%clk 0:02:57]} 14. Nc4 {[%clk 0:02:57]}  Rfe8 {[%clk 0:02:58]} 15. Re1 {[%clk 0:02:56]}  N7f6 {[%clk 0:02:57]} 16. g3 {[%clk 0:02:54]}  Ne4 {[%clk 0:02:58]} 17. Ncd2 {[%clk 0:02:52]}  h5 {[%clk 0:02:55]} 18. Nxe4 {[%clk 0:02:47]}  fxe4 {[%clk 0:02:55]} 19. Nd2 {[%clk 0:02:46]}  h4 {[%clk 0:02:54]} 20. Qd1 {[%clk 0:02:46]}  Qg5 {[%clk 0:02:50]} 21. Qe2 {[%clk 0:02:45]}  Re6 {[%clk 0:02:50]} 22. Rac1 {[%clk 0:02:37]}  Rae8 {[%clk 0:02:50]} 23. Rc5 {[%clk 0:02:36]}  hxg3 {[%clk 0:02:46]} 24. fxg3 {[%clk 0:02:35]}  f5 {[%clk 0:02:42]} 25. Qf2 {[%clk 0:02:17]}  Rg6 {[%clk 0:02:37]} 26. Kh1 {[%clk 0:01:59]}  Rh6 {[%clk 0:02:37]} 27. Kg1 {[%clk 0:01:58]}  Qg6 {[%clk 0:02:31]} 28. a3 {[%clk 0:01:56]}  Rf8 {[%clk 0:02:31]} 29. Nc4 {[%clk 0:01:53]}  f4 {[%clk 0:02:17]} 30. exf4 {[%clk 0:01:52]}  Nxf4 {[%clk 0:02:13]} 31. Qe3 {[%clk 0:01:40]}  Nh3+ {[%clk 0:01:41]} 32. Kh1 {[%clk 0:01:40]}  Rf3 {[%clk 0:01:32]} 33. Qe2 {[%clk 0:01:21]}  Nf2+ {[%clk 0:01:31]} 34. Kg1 {[%clk 0:01:06]}  Rxg3+ {[%clk 0:01:29]} 35. Kxf2 {[%clk 0:01:04]}  Rxh2+ {[%clk 0:01:28]} 0-1


[Site "https://www.chess.com"]